bitfinex-derivatives/quotes_SOLF0:USTF0_20260115
["timestamp","ask_amount","ask_price","bid_price","bid_amount"]
[1768455995644,3.21779645,144.85,144.77,3.11166551]
[1768455995842,3.21779645,144.85,144.77,5.25035619]
[1768455996036,3.21779645,144.84,144.77,9.33006551]
[1768455996239,3.21779645,144.82,144.75,3.11166551]
[1768455996739,3.21779645,144.82,144.77,0.05111975]
[1768455997046,0.05066964,144.81,144.77,0.05111975]
[1768455997339,3.26846609,144.81,144.77,0.05111975]
[1768456000140,0.05066964,144.81,144.77,3.16278526]
[1768456000442,3.21779645,144.83,144.77,3.16278526]
[1768456004765,3.21779645,144.83,144.77,0.05111975]
[1768456005462,3.21779645,144.81,144.77,0.05111975]
[1768456005666,3.21779645,144.81,144.74,9.33126551]
[1768456005967,0.05251123,144.79,144.76,0.04709014]
[1768456006363,0.05251123,144.79,144.72,6.2205]
[1768456006364,3.27030768,144.79,144.72,6.2205]
[1768456007468,3.27030768,144.79,144.74,0.04657827]
[1768456015576,3.13480466,144.77,144.7,6.2213]
[1768456015878,3.13480466,144.77,144.69,87.06996049]
[1768456016374,3.13480466,144.77,144.69,3.33126981]
[1768456016778,0.04883856,144.74,144.72,0.05156312]
[1768456016976,3.18364322,144.74,144.72,0.05156312]
[1768456017177,3.18364322,144.74,144.68,6.2221]
[1768456018180,3.18364322,144.74,144.7,0.04671539]
[1768456022178,3.18364322,144.74,144.67,2.13869068]
[1768456022880,3.13480466,144.73,144.65,243.08109431]
[1768456023082,3.13480466,144.71,144.63,5.46996049]
[1768456023278,3.18609719,144.7,144.63,3.33126981]
[1768456023874,3.13480466,144.69,144.61,5.46996049]
[1768456024179,3.13480466,144.69,144.62,3.33126981]
[1768456024365,0.05119374,144.66,144.64,0.04638188]
[1768456025673,3.13480466,144.71,144.65,3.33126981]
[1768456026079,3.13480466,144.71,144.64,2.13869068]
[1768456026782,0.04690778,144.69,144.66,0.04814913]
[1768456028085,3.13480466,144.73,144.66,5.51810962]
[1768456030884,3.13480466,144.73,144.66,3.37941894]
[1768456031088,0.0450843,144.71,144.66,5.51810962]
[1768456033084,0.0450843,144.71,144.67,3.33126981]
[1768456033291,3.13480466,144.75,144.69,3.33126981]
[1768456033591,84.77480466,144.78,144.7,5.46996049]
[1768456033781,3.13480466,144.78,144.72,2.13869068]
[1768456034291,3.13480466,144.78,144.74,0.05030026]
[1768456034678,3.18255506,144.77,144.72,2.13869068]
[1768456034886,3.18255506,144.77,144.71,3.33126981]
[1768456035790,3.18255506,144.77,144.73,0.05072624]
[1768456043296,0.0477504,144.77,144.73,0.05072624]
[1768456044393,3.27030273,144.8,144.73,9.5145547]
[1768456045487,0.0531193,144.78,144.73,9.5145547]
[1768456052104,0.0531193,144.78,144.74,9.46332846]
[1768456060398,3.32342203,144.78,144.73,0.05072624]
[1768456061102,3.32342203,144.78,144.7,3.24362846]
[1768456062302,3.32342203,144.78,144.73,0.04830735]
[1768456062805,9.48900273,144.77,144.7,3.24362846]
[1768456063498,3.27030273,144.76,144.7,3.24362846]
[1768456064004,0.04459663,144.74,144.72,0.04974525]
[1768456066505,3.27030273,144.78,144.72,3.29337371]
[1768456067711,0.04992765,144.76,144.72,3.29337371]
[1768456088326,91.08249391,144.8,144.72,3.29337371]
[1768456088825,9.46269391,144.79,144.72,9.51397371]
[1768456089120,9.46269391,144.79,144.72,3.29337371]
[1768456089327,0.05181574,144.77,144.72,3.29337371]
[1768456092033,9.46209391,144.81,144.72,3.29337371]
[1768456092234,9.46209391,144.81,144.72,3.24362846]
[1768456092725,9.46209391,144.81,144.71,3.34131651]
[1768456092726,3.24489391,144.81,144.74,3.253227]
[1768456093128,0.04517891,144.79,144.76,3.30084959]
[1768456094529,87.8365,144.82,144.76,3.30084959]
[1768456097442,0.04563739,144.8,144.76,3.30084959]
[1768456099339,9.46009391,144.85,144.77,3.253227]
[1768456099839,3.24489391,144.85,144.79,3.253227]
[1768456100033,9.45929391,144.87,144.79,3.253227]
[1768456100223,9.45929391,144.87,144.82,0.05300837]
[1768456100627,3.24489391,144.87,144.82,0.05300837]
[1768456101434,5.38142576,144.87,144.82,0.05300837]
[1768456101635,3.18776055,144.86,144.82,0.05300837]
[1768456103133,2.13653185,144.85,144.8,3.253227]
[1768456104335,2.13653185,144.85,144.81,0.05320265]
[1768456104336,0.04951194,144.84,144.81,0.05320265]
[1768456111344,0.04951194,144.84,144.81,3.07921443]
[1768456111739,0.04951194,144.84,144.81,0.05320265]
[1768456114246,5.43739924,144.84,144.81,0.05320265]
[1768456114449,5.43739924,144.84,144.77,3.02601178]
[1768456115451,5.43739924,144.84,144.79,0.05043658]
[1768456116451,2.13653185,144.82,144.79,0.05043658]
[1768456116748,2.13653185,144.82,144.76,3.02601178]
[1768456116749,2.13653185,144.8,144.76,3.02601178]
[1768456117649,0.04725519,144.79,144.77,0.04876134]
[1768456119252,9.46675545,144.85,144.77,3.07477312]
[1768456119448,2.13653185,144.84,144.77,3.02601178]
[1768456119752,2.13653185,144.82,144.77,3.02601178]
[1768456120354,0.04568146,144.81,144.78,0.0438914]
[1768456121456,0.04568146,144.81,144.77,3.02601178]
[1768456121457,3.29703691,144.81,144.75,3.02601178]
[1768456121656,2.13653185,144.8,144.75,3.02601178]
[1768456122056,5.43356876,144.81,144.75,3.02601178]
[1768456122557,5.43356876,144.81,144.77,0.04938893]
[1768456129061,2.18221331,144.81,144.77,0.04938893]
[1768456129355,0.04568146,144.81,144.77,0.04938893]
[1768456146174,0.04568146,144.81,144.77,3.18330413]
[1768456146382,9.27488437,144.84,144.77,3.18330413]
[1768456147472,0.05192065,144.82,144.77,3.18330413]
[1768456152867,3.11100502,144.82,144.77,3.18330413]
[1768456157390,0.05192065,144.82,144.77,3.18330413]
[1768456158985,0.05192065,144.82,144.78,3.1339152]
[1768456163879,0.05192065,144.82,144.77,0.04938893]
[1768456163880,3.23052316,144.82,144.77,0.04938893]
[1768456164490,3.23052316,144.82,144.77,3.32054655]
[1768456172991,9.44712316,144.82,144.77,0.04938893]
[1768456173391,0.05192065,144.82,144.77,3.32054655]
[1768456201918,3.34717851,144.82,144.77,0.04938893]
[1768456202118,3.34717851,144.82,144.75,3.26712389]
[1768456202823,6.217,144.81,144.75,3.26712389]
[1768456203123,6.217,144.81,144.77,0.04636151]
[1768456203825,3.34717851,144.82,144.77,0.04636151]
[1768456206623,3.34717851,144.82,144.77,3.3134854]
[1768456207326,9.56377851,144.82,144.77,3.3134854]
[1768456207521,9.56377851,144.82,144.77,0.04636151]
[1768456207522,3.29525786,144.81,144.77,0.04636151]
[1768456210423,9.51235786,144.81,144.75,3.26712389]
[1768456210622,3.29525786,144.8,144.73,3.26712389]
[1768456210926,3.29525786,144.79,144.73,3.26712389]
[1768456211522,0.05150881,144.77,144.75,0.05007565]
[1768456212117,0.05150881,144.77,144.73,3.26712389]
[1768456213231,0.05150881,144.77,144.74,0.04466388]
[1768456213430,0.05150881,144.77,144.74,3.31178777]
[1768456222730,0.05150881,144.77,144.74,0.04466388]
[1768456223338,0.05150881,144.77,144.72,3.31548073]
[1768456224436,0.05150881,144.77,144.73,3.36324627]
[1768456224635,0.05150881,144.77,144.71,3.31548073]
[1768456224636,9.40767368,144.77,144.71,3.31548073]
[1768456224930,6.27020881,144.77,144.71,3.31548073]
[1768456225435,0.05150881,144.77,144.71,3.31548073]
[1768456225833,0.05150881,144.77,144.73,3.36683465]
[1768456228433,0.05150881,144.77,144.73,0.05135392]
[1768456228742,6.27020881,144.77,144.71,3.31548073]
[1768456230632,0.05150881,144.77,144.73,0.04707225]
[1768456230838,0.04529332,144.76,144.73,3.36255298]
[1768456234841,5.3217857,144.76,144.69,3.31548073]
[1768456235042,3.13746487,144.76,144.69,3.31548073]
[1768456235238,5.27649238,144.76,144.69,3.31548073]
[1768456235839,11.49569238,144.76,144.69,3.31548073]
[1768456236039,0.04690333,144.74,144.69,3.31548073]
[1768456245549,5.32339571,144.74,144.65,6.2236]
[1768456245752,5.27649238,144.74,144.66,3.31548073]
[1768456245951,0.04905287,144.71,144.66,3.31548073]
[1768456246956,0.04905287,144.71,144.68,3.31548073]
[1768456249457,0.04905287,144.71,144.67,0.05296924]
[1768456251657,6.27025287,144.71,144.67,0.05296924]
[1768456251861,2.13902751,144.7,144.66,3.31548073]
[1768456253360,6.27025287,144.71,144.66,3.31548073]
[1768456255365,9.56392801,144.71,144.66,3.31548073]
[1768456255568,9.51537514,144.7,144.65,3.17007888]
[1768456259164,6.2221,144.69,144.65,3.17007888]
[1768456259464,3.29367514,144.7,144.66,0.05081786]
[1768456261767,6.2222,144.69,144.66,0.05081786]
[1768456261965,6.2222,144.69,144.63,2.13902751]
[1768456261966,9.51587514,144.69,144.63,2.13902751]
[1768456262661,3.29367514,144.69,144.63,2.13902751]
[1768456263071,0.04572042,144.67,144.62,6.2249]
[1768456263269,0.04572042,144.67,144.63,2.13902751]
[1768456263470,0.04572042,144.67,144.64,0.04464651]
[1768456263969,0.04572042,144.67,144.64,3.21472539]
[1768456265470,0.04572042,144.67,144.64,0.04464651]
[1768456269270,0.04572042,144.67,144.63,0.42510404]
[1768456270363,0.04572042,144.67,144.64,0.03085686]
[1768456270567,0.04572042,144.67,144.63,0.42510404]
[1768456276464,0.04572042,144.67,144.61,3.17007888]
[1768456276669,0.04572042,144.67,144.61,5.30910639]
[1768456277469,3.33939556,144.67,144.61,5.30910639]
[1768456278368,3.33939556,144.67,144.61,3.17007888]
[1768456280864,3.25801805,144.67,144.61,3.17007888]
[1768456281068,3.25801805,144.67,144.61,5.30910639]
[1768456281464,3.25801805,144.67,144.61,3.17007888]
[1768456282071,5.39704556,144.67,144.61,3.17007888]
[1768456284272,11.62004556,144.67,144.61,3.17007888]
[1768456285376,9.48101805,144.67,144.61,3.17007888]
[1768456288273,3.06843949,144.66,144.61,3.17007888]
[1768456288477,3.06843949,144.66,144.59,3.21846656]
[1768456288777,0.04945207,144.64,144.59,3.21846656]
[1768456303784,6.2228,144.68,144.59,3.21846656]
[1768456304177,9.29123949,144.68,144.59,3.21846656]
[1768456304381,9.29153949,144.67,144.59,3.21846656]
[1768456304780,0.04608031,144.64,144.62,0.04717291]
[1768456312789,9.44036476,144.69,144.62,3.22942683]
[1768456313291,3.21816476,144.69,144.62,3.22942683]
[1768456313886,0.05234007,144.67,144.62,3.22942683]
[1768456321105,0.05234007,144.67,144.62,9.45432683]
[1768456321305,3.21816476,144.69,144.63,3.18225392]
[1768456322414,0.05273804,144.67,144.63,3.18225392]
[1768456324210,0.05273804,144.67,144.63,9.40675392]
[1768456324416,3.21816476,144.69,144.64,3.18225392]
[1768456324816,3.21816476,144.71,144.65,3.18225392]
[1768456325509,0.04543883,144.69,144.67,0.05087606]
[1768456330819,0.04543883,144.69,144.65,9.40585392]
[1768456331821,0.04543883,144.69,144.66,0.0459961]
[1768456334517,3.26360359,144.69,144.66,0.0459961]
[1768456339926,3.26360359,144.69,144.64,6.2241]
[1768456341027,3.26360359,144.69,144.65,0.05266551]
[1768456343521,3.14667554,144.68,144.61,3.2309796]
[1768456343828,3.14667554,144.68,144.59,241.75793001]
[1768456344218,3.14667554,144.67,144.59,241.75793001]
[1768456344416,0.0488036,144.64,144.59,3.2309796]
[1768456345929,0.0488036,144.64,144.59,9.4571796]
[1768456348925,0.0488036,144.64,144.6,3.2309796]
[1768456349129,5.28975998,144.69,144.61,3.2309796]
[1768456349435,3.14667554,144.69,144.62,3.2309796]
[1768456349626,2.14308444,144.7,144.62,3.2309796]
[1768456349825,84.82667554,144.71,144.63,3.2309796]
[1768456350131,0.05286881,144.68,144.66,0.04404735]
[1768456356936,86.96975998,144.71,144.66,0.04404735]
[1768456357537,84.82667554,144.71,144.66,0.04404735]
[1768456357938,0.0447669,144.7,144.66,0.04404735]
[1768456359840,5.33452688,144.7,144.65,3.2309796]
[1768456360040,5.33452688,144.7,144.63,9.4553796]
[1768456360238,5.33452688,144.7,144.64,3.2309796]
[1768456360637,3.19144244,144.7,144.64,3.2309796]
[1768456360935,5.33452688,144.7,144.64,3.2309796]
[1768456362738,5.33452688,144.7,144.66,0.04470636]
[1768456367745,5.33452688,144.7,144.64,3.2309796]
[1768456368246,3.14667554,144.69,144.62,9.4556796]
[1768456368846,0.05068413,144.67,144.62,9.4556796]
[1768456370850,3.14667554,144.69,144.64,3.23820922]
[1768456372050,0.05319893,144.68,144.65,0.04376095]
[1768456376050,3.22629577,144.68,144.62,3.23820922]
[1768456377053,3.22629577,144.68,144.64,0.02285743]
[1768456377357,5.36938021,144.68,144.64,0.02285743]
[1768456381963,3.17309684,144.67,144.64,0.02285743]
[1768456382259,3.17309684,144.67,144.62,3.23820922]
[1768456382762,9.39609684,144.67,144.62,3.23820922]
[1768456384363,0.05319893,144.68,144.62,3.23820922]
[1768456384767,3.22629577,144.68,144.62,3.23820922]
[1768456384964,3.17309684,144.67,144.62,3.23820922]
[1768456385659,9.39599684,144.67,144.62,3.23820922]
[1768456388068,2.19628337,144.68,144.59,3.23820922]
[1768456388069,9.39649684,144.66,144.59,3.23820922]
[1768456388265,0.0523834,144.64,144.59,3.23820922]
[1768456407683,0.0523834,144.64,144.59,5.38129366]
[1768456407885,0.0523834,144.64,144.6,3.22172994]
[1768456409883,9.42433654,144.69,144.62,3.22172994]
[1768456410987,0.05168969,144.67,144.64,0.0462303]
[1768456412681,0.05168969,144.67,144.64,3.26796024]
[1768456413287,91.10333654,144.71,144.64,3.26796024]
[1768456413684,3.20203654,144.7,144.64,3.26796024]
[1768456414282,0.05133241,144.68,144.64,3.26796024]
[1768456419691,6.27393241,144.68,144.64,0.0462303]
[1768456419998,9.47596895,144.68,144.64,0.0462303]
[1768456422696,3.20203654,144.67,144.62,3.22172994]
[1768456423796,6.2234,144.66,144.63,0.04702299]
[1768456428999,3.20203654,144.67,144.63,0.04702299]
[1768456430904,9.42503654,144.67,144.63,0.04702299]
[1768456433199,9.42503654,144.67,144.6,3.08749849]
[1768456433400,6.2234,144.66,144.6,3.08749849]
[1768456434207,0.05231881,144.64,144.6,3.08749849]
[1768456440201,3.08430406,144.64,144.58,3.08749849]
[1768456441906,6.2247,144.63,144.58,3.08749849]
[1768456446610,9.25668525,144.63,144.58,3.08749849]
[1768456451009,9.25668525,144.63,144.56,3.08749849]
[1768456451210,0.04779011,144.61,144.56,3.08749849]
[1768456461225,3.32016024,144.61,144.56,3.08749849]
[1768456461919,9.54566024,144.61,144.56,3.08749849]
[1768456462426,3.32016024,144.61,144.56,3.08749849]
[1768456471330,5.46437702,144.61,144.56,3.08749849]
[1768456476042,11.68987702,144.61,144.53,3.03331401]
[1768456476244,0.05052119,144.58,144.53,3.03331401]
[1768456477840,3.31969798,144.58,144.53,3.03331401]
[1768456485150,3.31969798,144.58,144.53,9.26211401]
[1768456491643,3.31969798,144.58,144.53,3.03331401]
[1768456500755,3.31969798,144.58,144.53,9.26211401]
[1768456506064,3.31969798,144.58,144.53,6.2288]
[1768456506265,3.31969798,144.58,144.51,11.63578174]
[1768456506764,3.13346495,144.57,144.51,9.49156496]
[1768456507365,3.13346495,144.57,144.52,6.2293]
[1768456508357,3.13346495,144.57,144.52,9.49136496]
[1768456509066,0.05052119,144.58,144.53,3.26206496]
[1768456509567,3.18398614,144.58,144.53,3.26206496]
[1768456513064,3.18398614,144.58,144.51,3.26206496]
[1768456513261,0.04524064,144.56,144.51,3.26206496]
[1768456520971,3.09302675,144.56,144.51,3.26206496]
[1768456530080,3.09302675,144.56,144.51,9.49166496]
[1768456530873,0.04524064,144.56,144.51,9.49166496]
[1768456531581,3.108945,144.56,144.51,6.2296]
[1768456531988,3.108945,144.56,144.51,9.32858879]
[1768456533383,0.04524064,144.56,144.51,9.32858879]
[1768456534679,3.108945,144.56,144.51,6.2296]
[1768456534981,3.06370436,144.59,144.53,3.09898879]
[1768456535483,3.06370436,144.59,144.52,6.27321648]
[1768456535882,0.05321297,144.57,144.52,6.27321648]
[1768456536284,0.05321297,144.57,144.52,9.37220527]
[1768456538581,0.05321297,144.57,144.52,3.14290527]
[1768456539181,3.06370436,144.56,144.48,6.2308]
[1768456539586,3.06370436,144.56,144.49,3.09898879]
[1768456539780,3.06370436,144.56,144.49,9.32948879]
[1768456539983,3.06370436,144.56,144.5,3.09898879]
[1768456540287,0.04931493,144.54,144.5,3.09898879]
[1768456544189,0.04931493,144.54,144.49,6.2305]
[1768456544390,0.04931493,144.54,144.49,9.32948879]
[1768456548497,3.11301929,144.54,144.49,6.2305]
[1768456555697,3.11301929,144.54,144.48,3.09898879]
[1768456555894,3.11301929,144.54,144.47,6.2311]
[1768456556098,3.11301929,144.54,144.47,9.5609561]
[1768456556296,3.11301929,144.54,144.48,6.231]
[1768456557290,3.11301929,144.54,144.48,9.5608561]
[1768456567927,3.11301929,144.54,144.48,3.3298561]
[1768456573920,0.04931493,144.54,144.48,3.3298561]
[1768456575029,3.14777768,144.54,144.48,3.3298561]
[1768456582130,3.14777768,144.54,144.47,3.04561767]
[1768456583838,3.14777768,144.54,144.48,9.42914664]
[1768456584037,0.04970931,144.52,144.48,9.42914664]
[1768456585238,0.04970931,144.52,144.49,3.19814664]
[1768456585532,84.91817014,144.56,144.49,3.19814664]
[1768456585732,3.15817014,144.55,144.49,3.19814664]
[1768456586340,0.05181731,144.53,144.49,9.42864664]
[1768456586535,0.05181731,144.53,144.5,3.19814664]
[1768456587940,0.05181731,144.53,144.5,9.42824664]
[1768456588339,81.76,144.59,144.5,3.19814664]
[1768456588535,5.26985322,144.58,144.5,3.19814664]
[1768456588832,81.76,144.59,144.5,3.19814664]
[1768456589042,5.26985816,144.58,144.5,3.19814664]
[1768456589342,0.04975286,144.55,144.53,0.05142142]
[1768456593344,3.15817014,144.58,144.53,0.05142142]
[1768456594351,3.15817014,144.56,144.52,6.2292]
[1768456595345,0.05207396,144.55,144.53,0.05280972]
[1768456597150,0.05207396,144.55,144.52,6.2292]
[1768456598146,0.05207396,144.55,144.52,6.27303949]
[1768456605550,3.2102441,144.55,144.5,3.19814664]
[1768456606858,3.2102441,144.55,144.51,6.2297]
[1768456607953,3.15817014,144.54,144.48,9.42904664]
[1768456609157,2.19716058,144.55,144.49,9.42864664]
[1768456609358,0.04986472,144.53,144.49,9.42864664]
[1768456610952,0.04986472,144.53,144.49,3.19814664]
[1768456623259,0.04986472,144.53,144.46,3.56172146]
[1768456623466,3.31574797,144.53,144.46,3.56172146]
[1768456625767,2.14508662,144.51,144.46,3.56172146]
[1768456625970,0.04632635,144.5,144.46,3.56172146]
[1768456626968,0.04632635,144.5,144.42,2.14508662]
[1768456628169,0.04632635,144.5,144.44,2.14508662]
[1768456628473,6.2292,144.53,144.46,0.04927436]
[1768456628868,6.2294,144.52,144.47,3.56172146]
[1768456629372,6.2285,144.54,144.48,3.60705021]
[1768456629573,6.2285,144.54,144.48,3.56172146]
[1768456630578,0.05184939,144.52,144.5,0.04530294]
[1768456631877,0.05184939,144.52,144.48,3.56172146]
[1768456634680,6.28144939,144.52,144.48,2.146e-05]
[1768456635882,6.28144939,144.52,144.49,0.04491777]
[1768456636184,6.2299,144.51,144.49,0.04491777]
[1768456637176,6.2299,144.51,144.48,2.146e-05]
[1768456638087,6.2303,144.5,144.48,2.146e-05]
[1768456640885,0.05184939,144.52,144.48,2.146e-05]
[1768456642090,0.05184939,144.52,144.46,1.82773019]
[1768456646590,0.05184939,144.52,144.46,3.97281681]
[1768456646890,158.0394311,144.57,144.49,2.47050324]
[1768456647097,4.29589281,144.58,144.51,2.47050324]
[1768456647681,0.05258128,144.56,144.53,2.62228646]
[1768456647887,4.29589281,144.59,144.53,2.62228646]
[1768456648885,0.04830539,144.57,144.53,2.62228646]
[1768456665097,6.2262,144.6,144.53,2.62228646]
[1768456666106,0.04577054,144.58,144.53,2.62228646]
[1768456669714,6.27257054,144.58,144.53,2.62228646]
[1768456670502,10.56846335,144.58,144.53,2.62228646]
[1768456672311,6.27257054,144.58,144.53,2.62228646]
[1768456680319,0.04577054,144.58,144.53,2.62228646]
[1768456687426,87.9657,144.61,144.53,2.62228646]
[1768456687821,87.9657,144.61,144.54,5.75720302]
[1768456688022,93.62563182,144.61,144.54,5.75720302]
[1768456688423,0.04416009,144.59,144.56,0.0507652]
[1768456698127,6.2252,144.62,144.56,5.80796822]
[1768456698530,11.88513182,144.62,144.56,5.80796822]
[1768456699233,0.0493829,144.6,144.56,5.80796822]
[1768456706936,13.07611497,144.64,144.56,5.80796822]
[1768456707837,13.07611497,144.64,144.57,6.77678326]
[1768456708132,6.2236,144.66,144.6,6.77678326]
[1768456708538,13.07541497,144.66,144.6,6.77678326]
[1768456708733,6.85181497,144.65,144.6,6.77678326]
[1768456709337,0.0451793,144.64,144.6,6.77678326]
[1768456714652,0.0451793,144.64,144.59,0.05241314]
[1768456714653,6.89699427,144.64,144.59,0.05241314]
[1768456714950,6.89699427,144.64,144.59,6.8291964]
[1768456715850,8.99460915,144.63,144.59,0.05241314]
[1768456716052,2.14279418,144.63,144.59,0.05241314]
[1768456718456,8.99460915,144.63,144.59,0.05241314]
[1768456719956,6.85181497,144.63,144.59,0.05241314]
[1768456720158,8.99460915,144.63,144.59,0.05241314]
[1768456720657,15.21930915,144.63,144.56,6.77678326]
[1768456721453,6.85181497,144.62,144.56,6.77678326]
[1768456721853,0.05115228,144.6,144.56,6.77678326]
[1768456723259,6.85181497,144.64,144.56,6.77678326]
[1768456723461,8.99460915,144.64,144.56,6.77678326]
[1768456724360,8.99460915,144.64,144.59,0.04572189]
[1768456725561,2.14279418,144.65,144.59,6.82250515]
[1768456726464,6.85181497,144.66,144.6,6.77678326]
[1768456727866,8.36549418,144.68,144.6,6.77678326]
[1768456728261,2.14279418,144.68,144.63,6.82307018]
[1768456728460,8.99460915,144.68,144.63,6.82307018]
[1768456729254,0.04541141,144.67,144.63,6.82307018]
[1768456730158,6.85181497,144.66,144.58,6.77678326]
[1768456730363,6.85181497,144.65,144.58,6.77678326]
[1768456731262,0.04770322,144.63,144.58,6.77678326]
[1768456733868,6.2239,144.65,144.6,7.18867404]
[1768456735670,6.2242,144.64,144.6,7.18867404]
[1768456735870,6.2242,144.64,144.61,0.0492554]
[1768456737874,6.88484363,144.66,144.61,0.0492554]
[1768456744379,6.88484363,144.68,144.61,7.23792944]
[1768456744573,6.88484363,144.68,144.62,7.18867404]
[1768456744773,6.88484363,144.68,144.63,7.23299954]
[1768456747482,0.04486091,144.67,144.63,7.23299954]
[1768456747877,0.04486091,144.67,144.63,0.0443255]
[1768456747878,6.92970454,144.67,144.63,0.0443255]
[1768456748683,6.88484363,144.66,144.59,13.41467404]
[1768456749783,0.05250119,144.64,144.59,13.41467404]
[1768456750181,0.05250119,144.64,144.6,0.04633677]
[1768456754187,6.93734482,144.64,144.6,0.04633677]
[1768456754586,9.080139,144.64,144.6,0.04633677]
[1768456754788,9.080139,144.64,144.57,7.18867404]
[1768456755786,15.304439,144.64,144.59,0.05161492]
[1768456756089,6.88484363,144.63,144.59,0.05161492]
[1768456772401,6.27680119,144.64,144.61,9.57884047]
[1768456772607,7.30406207,144.67,144.61,9.57884047]
[1768456773604,0.04960163,144.65,144.63,0.046982]
[1768456775105,0.04960163,144.65,144.61,9.57884047]
[1768456775305,0.04960163,144.65,144.61,7.43604629]
[1768456776312,0.04960163,144.65,144.62,0.05023129]
[1768456778308,7.3536637,144.65,144.62,0.05023129]
[1768456782804,13.5775637,144.65,144.62,0.05023129]
[1768456783910,0.04960163,144.65,144.62,7.48627758]
[1768456784126,7.30406207,144.7,144.62,0.05023129]
[1768456784811,13.52666207,144.68,144.62,0.05023129]
[1768456785015,7.30406207,144.67,144.6,3.34670923]
[1768456785314,7.34895469,144.65,144.62,0.05130768]
[1768456788723,0.04489262,144.65,144.62,1.77388659]
[1768456789018,7.30406207,144.69,144.62,0.05130768]
[1768456789414,13.52626207,144.69,144.62,0.05130768]
[1768456789620,7.30406207,144.68,144.62,0.05130768]
[1768456790020,7.35400467,144.66,144.62,0.05130768]
[1768456791416,7.35400467,144.66,144.6,81.68]
[1768456791622,7.35400467,144.66,144.57,86.81000488]
[1768456791823,7.30406207,144.66,144.58,1.79501351]
[1768456792418,0.04868509,144.63,144.61,0.04968837]
[1768456792619,0.04719049,144.63,144.61,0.04968837]
[1768456793624,7.95889128,144.63,144.58,1.79501351]
[1768456794822,7.95889128,144.63,144.59,0.04713759]
[1768456800127,7.91170079,144.61,144.54,1.98181829]
[1768456800629,7.91170079,144.61,144.51,94.51061325]
[1768456800630,7.91170079,144.61,144.52,1.98181829]
[1768456801328,0.04815135,144.58,144.55,0.04829371]
[1768456806632,7.95985214,144.58,144.51,81.7]
[1768456806836,7.95985214,144.58,144.51,83.80348282]
[1768456807631,7.91170079,144.57,144.53,0.0496053]
[1768456812134,0.04815135,144.58,144.53,2.20219717]
[1768456815133,0.04815135,144.58,144.53,8.43089717]
[1768456815339,7.91170079,144.61,144.54,2.18075323]
[1768456816541,0.05255829,144.59,144.56,0.04460513]
[1768456821152,7.98268221,144.63,144.56,2.27891802]
[1768456821444,7.98268221,144.66,144.57,2.23431289]
[1768456822249,0.05210479,144.63,144.6,0.04454078]
[1768456822441,0.04544002,144.63,144.57,2.23431289]
[1768456822748,0.04544002,144.63,144.59,2.29173544]
[1768456824948,7.78758786,144.66,144.59,2.29173544]
[1768456825140,7.78758786,144.66,144.59,2.2477632]
[1768456825751,7.78758786,144.66,144.6,6.2257]
[1768456825954,0.0519682,144.64,144.6,6.2257]
[1768456826142,7.78758786,144.66,144.61,0.04898635]
[1768456828251,0.04447083,144.65,144.61,0.04898635]
[1768456836657,7.83205869,144.65,144.61,0.04898635]
[1768456858275,7.83205869,144.65,144.58,2.14202072]
[1768456858276,8.28493493,144.64,144.58,2.14202072]
[1768456858462,8.28493493,144.64,144.58,4.68579113]
[1768456860475,8.28493493,144.64,144.6,2.14202072]
[1768456861372,0.04447083,144.65,144.6,2.14202072]
[1768456863675,8.32940576,144.65,144.6,2.14202072]
[1768456864779,8.32940576,144.65,144.61,0.05018363]
[1768456866876,8.28493493,144.64,144.57,99.2616531]
[1768456867979,0.0456873,144.62,144.57,97.11963238]
[1768456868276,8.28205971,144.62,144.59,0.05037078]
[1768456869282,8.32814478,144.62,144.55,17.62431077]
[1768456869481,8.28205971,144.62,144.55,17.62431077]
[1768456870384,0.04935428,144.6,144.57,2.14202072]
[1768456870679,14.50715971,144.62,144.57,2.19513207]
[1768456870882,8.28493493,144.65,144.57,4.90684852]
[1768456871073,8.28493493,144.65,144.59,2.14202072]
[1768456871682,0.04514318,144.63,144.59,2.14202072]
[1768456872481,0.04514318,144.63,144.59,4.85848159]
[1768456872681,0.04514318,144.63,144.6,0.05109357]
[1768456873177,8.28493493,144.65,144.6,0.05109357]
[1768456873383,8.28493493,144.65,144.61,2.14202072]
[1768456874382,0.05039349,144.64,144.61,2.14202072]
[1768456878986,0.05039349,144.64,144.6,0.05109357]
[1768456879284,8.28493493,144.67,144.62,2.14202072]
[1768456879484,8.28493493,144.67,144.62,4.8902075]
[1768456879882,8.28493493,144.67,144.63,2.14202072]
[1768456880282,0.04791422,144.66,144.64,0.04387414]
[1768456890096,7.77795969,144.69,144.64,0.04387414]
[1768456890894,89.47795969,144.71,144.64,2.85618272]
[1768456891090,89.47795969,144.71,144.65,2.14202072]
[1768456891292,0.04856222,144.69,144.65,2.14202072]
[1768456891600,0.04856222,144.69,144.65,4.9543293]
[1768456891797,7.77795969,144.71,144.66,2.81584283]
[1768456892794,0.04731107,144.7,144.67,0.04926853]
[1768456893900,2.14202072,144.75,144.67,0.04926853]
[1768456893901,7.77795969,144.73,144.67,2.19128925]
[1768456894600,7.77795969,144.73,144.67,5.01407181]
[1768456895003,0.05327852,144.71,144.67,5.01407181]